[Event "45th FIDE Olympiad 2024"]
[Site "Budapest"]
[Date "2024.09.12"]
[Round "2.154"]
[White "Noboa Silva, Kevin"]
[Black "Fier, Alexandr"]
[Result "1/2-1/2"]
[ECO "D31"]
[WhiteElo "2270"]
[BlackElo "2551"]
[Annotator "TA"]
[PlyCount "172"]
[EventDate "2024.09.05"]
[EventType "team-tourn"]
[EventCountry "HUN"]
[SourceTitle "playchess.com"]
[Source "ChessBase"]
[SourceQuality "1"]
[WhiteTeam "Ecuador"]
[BlackTeam "Brazil"]
[WhiteTeamCountry "ECU"]
[BlackTeamCountry "BRA"]
[TimeControl "40/5400+30:1800+30"]

{[%evp 67,172,20,9,7,8,-16,0,0,33,33,58,67,54,49,49,49,49,49,55,53,48,49,88,46,47,37,42,43,45,8,10,8,22,22,62,47,47,47,143,101,1026,8,8,6,8,8,8,8,8,8,8,8,8,4,4,4,4,4,4,4,4,4,8,8,8,8,8,4,251,240,185,177,608,464,402,226,1170,1130,1747,1548,1324,0,0,0,0,0,0,0,0,0,0,0,0,0,0,0,0,0,0,0,0,0,0,0,0,0,0]} 1. d4 d5 2. c4 e6 3. Nc3 c6 4. cxd5 exd5 5. Bf4 Bd6 6. Bg3 Ne7 7. e3 Nf5 8. Bd3 Nxg3 {D31: Queen's Gambit Declined: Semi-Slav without ...Nf6 (+ Marshall Gambit and Noteboom) and Exchange Variation lines without ...Nf6.} 9. hxg3 Nd7 10. Nf3 Nf6 11. Qc2 h6 12. Nh4 O-O 13. O-O Re8 14. Rfe1 $146 ({Predecessor:} 14. Nf5 Bxf5 15. Bxf5 Qe7 16. Rfd1 g6 17. Bd3 Ng4 18. e4 Qg5 19. Be2 {1-0 Brujatsky,E (2185)-Bruyatskaya,M (2040) Dimitrovgrad-ch 2009 (8)}) 14... Be6 15. Rad1 Bf8 16. a3 a5 17. Nf3 Bg4 18. Bf5 Bxf5 19. Qxf5 Qb6 20. Qc2 Re6 21. Na4 Qc7 22. Nc5 Bxc5 23. dxc5 a4 24. Rd4 Qa5 25. Rb4 Qa7 26. Rc1 Ne4 27. Nd2 Nf6 28. Nf3 Re7 29. Qd1 Re4 30. Nd4 Nd7 31. Nb5 Qa5 32. Rxe4 dxe4 33. Nd6 Nxc5 34. Qh5 Nd3 35. Qxf7+ Kh7 36. Nxb7 Qg5 (36... Qd5 {simplifies} 37. Qxd5 cxd5 38. Rc7 Ra7) 37. Rc3 Ra7 38. Qe6 Nxf2 39. Kxf2 (39. Qxc6 Qxg3 40. Qd5 Nh3+ 41. Kh1 Qg4 42. gxh3 Qxh3+ 43. Kg1 Qg4+ 44. Kf1 Ra8 $11 (44... Rxb7 $2 45. Qxb7 Qd1+ 46. Kf2 $18)) 39... Rxb7 40. Qxe4+ ({Reject} 40. Rxc6 Rxb2+ 41. Kg1 Rb1+ (41... Qxg3 42. Qf5+ g6 43. Qf7+ Kh8 44. Rc8#) (41... Qxe3+ 42. Kh2 $11) 42. Kf2 Qf6+ (42... Rb2+ 43. Kg1 $11) 43. Qxf6 gxf6 $11) 40... Kh8 41. Rxc6 Rxb2+ 42. Kg1 Rb8 43. Ra6 Qxg3 44. Rxa4 Qe1+ $1 45. Kh2 Qb1 46. Qxb1 Rxb1 47. Kg3 Kh7 48. Ra6 h5 49. a4 Rb4 50. a5 Ra4 51. Ra7 Kh6 52. a6 Kg6 ({Better is} 52... h4+ $1 $14 53. Kh3 Ra3) 53. Ra8 $1 $16 Kg5 $2 {[%mdl 8192]} (53... h4+ $16 54. Kf3 Kg5) 54. Kf3 $2 (54. a7 $18 h4+ 55. Kh3) 54... h4 $1 $11 55. Ra7 g6 56. Ra8 Ra2 57. a7 (57. e4 $5 Ra3+ $8 58. Kf2 Ra2+ 59. Ke3 Rxg2 60. a7 $11) 57... Ra3 58. Kf2 Ra2+ $1 59. Kg1 Kg4 60. Rg8 (60. Kh2 {is more complex.} Ra1 61. e4 Ra2 62. Rg8) 60... Rxa7 61. Rxg6+ Kf5 62. Rg8 Re7 63. Kf2 Rh7 64. Rf8+ Ke4 65. Rf4+ Ke5 66. Rf3 Ke4 67. Rh3 Rh8 $2 {[#]} (67... Kf5 $11 {and Black is okay.}) 68. Ke2 $1 $18 Kf5 69. g3 Rg8 $2 (69... Ra8) 70. gxh4 $18 Kg4 {[#]} 71. Rh1 $1 Rh8 $2 (71... Kh5 72. Rf1 Ra8) 72. h5 $18 Rh6 73. Kd3 Kf3 74. Rh4 $2 (74. Kd4 $18 Kg2 75. Ra1 (75. Rh4 Kg3 $18)) 74... Kg3 $11 75. Rf4 Rxh5 76. Rf8 Ra5 77. e4 Kg4 78. Re8 Kf4 79. Rf8+ Kg4 80. Rf1 Kg5 81. Rf2 Ra3+ 82. Kd4 Ra4+ 83. Kd5 Ra5+ 84. Kd6 Ra6+ 85. Kc5 Ra5+ 86. Kb4 Re5 1/2-1/2

[Event "45th FIDE Olympiad 2024"]
[Site "Budapest"]
[Date "2024.09.12"]
[Round "2.155"]
[White "Quintiliano, Renato R."]
[Black "Garzon Zapatanga, Christopher Leonel"]
[Result "1-0"]
[ECO "E92"]
[WhiteElo "2499"]
[BlackElo "2216"]
[Annotator "TA"]
[PlyCount "95"]
[EventDate "2024.09.05"]
[EventType "team-tourn"]
[EventCountry "HUN"]
[SourceTitle "playchess.com"]
[Source "ChessBase"]
[SourceQuality "1"]
[WhiteTeam "Brazil"]
[BlackTeam "Ecuador"]
[WhiteTeamCountry "BRA"]
[BlackTeamCountry "ECU"]
[TimeControl "40/5400+30:1800+30"]

{[%evp 17,95,22,41,48,45,51,80,70,85,92,87,78,82,72,88,86,82,89,99,106,109,102,104,95,105,90,95,104,104,73,64,56,80,66,73,79,71,70,65,77,113,96,102,100,115,93,95,95,95,84,102,89,444,444,442,443,443,429,381,264,360,360,1017,177,247,235,366,344,1393,1385,29982,29983,29983,29984,29980,6840,6552,5402,29984,29985]} 1. d4 Nf6 2. c4 g6 3. Nc3 Bg7 4. e4 d6 5. Nf3 O-O 6. Be2 e5 7. d5 a5 8. h3 Na6 9. Bg5 Qe8 10. g4 Bd7 11. Nd2 h6 12. Be3 {White is better.} Nh7 13. h4 f5 14. gxf5 gxf5 15. exf5 Bxf5 16. Nde4 Nf6 {[%cal Bh7f6,Bf6h5,Bh5f4][%mdl 32]} 17. f3 {White is more active.} Nh5 18. Qd2 Nf4 19. O-O-O {[%cal Ba1d1,Bd1g1,Bg1g3,Bg3g4][%mdl 32]} b6 20. Rdg1 Kh8 21. Bd1 Nc5 22. Bc2 Qe7 23. Rg3 Rf7 24. Rhg1 {Nxc5 would now be deadly.} Bh7 25. Nxc5 bxc5 26. Bxh7 Kxh7 27. Rg4 {[%cal Oc3e2]} Raf8 28. Ne2 h5 29. Rg5 Bh6 30. Bxf4 Rxf4 {Black is weak on the light squares} 31. Nxf4 {Intending Ng6 and mate.} (31. Rxh5 {looks sharper.} R4f6 32. Kb1 Qf7 33. Rgg5) 31... Bxg5 32. Rxg5 Rxf4 33. Rxh5+ $16 {[%mdl 4096] Endgame. KQR-KQR} (33. Qxa5 $2 Rxc4+ (33... Rxf3 34. Rxh5+ Kg6 35. Rg5+ Kh6 36. Qd2 $16) (33... Rxh4 $2 34. Rg1 $19) 34. Kb1 Rxh4 $19) 33... Kg6 34. Rg5+ Kh6 $2 {[%mdl 8192] [#] This move loses the game for Black.} (34... Kf7 $16) 35. Rg4 $1 $18 (35. Qxa5 $2 Rxc4+ 36. Kd2 e4 $19) 35... Qf6 36. Rxf4 (36. Qxa5 Rxg4 37. fxg4 Qf1+ 38. Kd2 Qxc4 $11) 36... exf4 37. Qxa5 Qxh4 {KQ-KQ} 38. Qc3 {White threatens Qh8+ and mate.} (38. Qxc7 Qe1+ 39. Kc2 Qe2+ 40. Kc1 Qxc4+ 41. Kd2 Qxd5+ 42. Ke1 Qd3 $11 (42... Qxa2 43. Qxd6+ Kg7 44. Qe5+ Kg6 45. Qe4+ Kg5 46. Qe5+ Kg6 47. Kf2 $11)) 38... Qe7 39. a4 Kg5 $2 (39... Qe8 40. b3 Kg6) 40. Kd1 $2 (40. a5 Qd7 41. Qb3) 40... Qh7 (40... Qd7 {might work better.}) 41. a5 Qh1+ (41... Qb1+ $142 42. Kd2 Qa2 43. Qg7+ Kf5 44. Qg4+ (44. Qxc7 Qxb2+ 45. Kd1 Qd4+ 46. Kc2 Qxc4+ 47. Kb2 Qe2+ 48. Kc1 Qxf3 $11) 44... Kf6) 42. Kc2 {Black must now prevent Qg7+.} Qh2+ $2 (42... Qf1 43. b3 (43. Qg7+ Kf5 $18) 43... Qf2+ 44. Kb1 Qg1+ 45. Kb2 Qf2+ 46. Qc2 (46. Ka3 Qe3 $18) 46... Qe1) 43. Kb3 {Threatens to win with a6.} Qe2 44. Qg7+ Kf5 45. Qg4+ (45. Qxc7 Qxf3+ (45... Qd3+ 46. Ka2 $11) 46. Ka4 Qe2 47. Qf7+ (47. Qxd6 Qxc4+ 48. Ka3 Qb4+ 49. Ka2 Qxa5+ 50. Kb1 Qe1+ 51. Ka2 Qe8 $11) 47... Kg5 $16) 45... Kf6 46. Qxf4+ (46. Qe6+ $142 Qxe6 47. dxe6 Kxe6 48. a6 Ke5 49. a7 Ke6 50. a8=Q (50. a8=B Ke5 $18) 50... Kd7 51. Kc3 (51. Qa4+ c6 52. Qa7+ Ke6 53. Qc7 Kf6 54. Qxd6+ Kg7 55. Qd7+ Kg8)) 46... Kg7 47. Qg4+ Kf6 {[#]} 48. Qe6+ $1 {Weighted Error Value: White=0.25 (precise) /Black=0.61.  Loses game:     	---       	Black=1      Mistake:       	White=1     	Black=4      Inaccurate:     	White=1     	Black=4      OK:         	White=13    	Black=10     Best:        	White=4     	Black=3      Strong:       	White=1     	---} 1-0

[Event "45th FIDE Olympiad 2024"]
[Site "Budapest"]
[Date "2024.09.12"]
[Round "2.156"]
[White "Mieles Palau, Daniel"]
[Black "Di Berardino, Diego Rafael"]
[Result "0-1"]
[ECO "A34"]
[WhiteElo "2321"]
[BlackElo "2472"]
[Annotator "TA"]
[PlyCount "54"]
[EventDate "2024.09.05"]
[EventType "team-tourn"]
[EventCountry "HUN"]
[SourceTitle "playchess.com"]
[Source "ChessBase"]
[SourceQuality "1"]
[WhiteTeam "Ecuador"]
[BlackTeam "Brazil"]
[WhiteTeamCountry "ECU"]
[BlackTeamCountry "BRA"]
[TimeControl "40/5400+30:1800+30"]

{[%evp 20,54,2,0,0,18,21,26,27,0,0,0,-1,0,-4,-40,-27,-41,-36,-49,-41,-39,-38,-57,-55,-56,-55,-55,-62,-510,-510,-681,-664,-672,-677,-644,-652]} 1. c4 c5 2. Nf3 Nf6 3. Nc3 d5 4. cxd5 Nxd5 5. g3 Nc6 6. Bg2 Nc7 7. O-O e5 8. d3 Be7 9. Nd2 Bd7 10. Nc4 f6 11. f4 b5 12. Ne3 O-O 13. Ned5 (13. fxe5 {is more complex.} Nxe5 14. Bxa8 Qxa8 15. Nf5) 13... Rb8 {White has an edge.} 14. Nxc7 Qxc7 15. a4 b4 16. Nd5 Qd6 17. Be3 Nd4 18. fxe5 fxe5 19. Nxe7+ Qxe7 20. Bxd4 exd4 21. Qb3+ Kh8 22. Rxf8+ Rxf8 23. Qd5 Bg4 24. Be4 $2 {[%mdl 8192] Loses the game.} (24. Qe4 $15 Qxe4 25. Bxe4) 24... Bxe2 $19 {Black is clearly winning.} 25. Kg2 {[#]} c4 {[%mdl 512]} 26. Qxd4 cxd3 27. Bxd3 {[#]} Bf3+ $1 {Weighted Error Value: White=0.49/Black=0.00 (flawless) .  Loses game:     	White=1     	---        Inaccurate:     	White=3     	---        OK:         	White=5     	Black=3      Best:        	White=1     	Black=3      Brilliant:      	---       	Black=1} 0-1

[Event "45th FIDE Olympiad 2024"]
[Site "Budapest"]
[Date "2024.09.12"]
[Round "2.157"]
[White "Wiedenkeller, Michael"]
[Black "Grandelius, Nils"]
[Result "0-1"]
[ECO "A47"]
[WhiteElo "2406"]
[BlackElo "2653"]
[Annotator "TA"]
[PlyCount "63"]
[EventDate "2024.09.05"]
[EventType "team-tourn"]
[EventCountry "HUN"]
[SourceTitle "playchess.com"]
[Source "ChessBase"]
[SourceQuality "1"]
[WhiteTeam "Luxembourg"]
[BlackTeam "Sweden"]
[WhiteTeamCountry "LUX"]
[BlackTeamCountry "SWE"]
[TimeControl "40/5400+30:1800+30"]

{[%evp 9,63,17,22,21,10,8,7,0,0,-14,-6,-7,0,-29,-43,-29,-32,-36,-29,-28,-12,-35,-21,-24,0,-26,-15,-37,0,-43,-6,-23,0,-9,-12,-12,0,0,10,0,11,0,0,-24,-16,-86,-89,-99,-97,-86,-91,-102,-86,-93,-84,-92]} 1. d4 Nf6 2. Bg5 b6 3. Nd2 Bb7 4. Ngf3 d6 5. Bxf6 exf6 6. e4 g6 7. Bd3 Bg7 8. O-O {The position is equal.} O-O 9. a4 Nc6 10. c3 d5 11. b4 dxe4 12. Bxe4 f5 13. Bd3 Ne7 {[%cal Bc6e7,Be7d5,Bd5f4,Bf4h5,Bh5f6,Bf6e4][%mdl 32]} 14. Qb3 Rb8 15. Bc4 Nd5 16. Rad1 c5 17. Rfe1 cxb4 (17... Nf4 {is interesting.} 18. dxc5 bxc5 19. Ne4 Qc7) 18. cxb4 Nf4 {[%cal Ob8c8]} 19. d5 {[%cal Od5d6]} Rc8 {[%cal Od8d6]} (19... Bxd5 $2 20. Nb1 $18) (19... Nxd5 $2 20. Nf1 $18) 20. Nf1 {[%cal Bd2f1,Bf1e3,Be3c4,Bc4d6][%mdl 32]} Qd6 {[%cal Oc8c4]} 21. g3 Nh5 22. Nd4 Bxd4 23. Rxd4 Nf6 24. Ne3 Rfe8 25. Red1 Re4 26. Rxe4 Nxe4 27. Bf1 (27. f3 $11 {keeps the balance.} Ng5 28. Kg2) 27... f4 $17 {Black has more active pieces. Black is better.} 28. Nc4 {[#]} Qf6 {...fxg3 would now be deadly.} ({Not} 28... Bxd5 29. Nxd6 Bxb3 30. Nxc8 $16) 29. Qf3 {[%csl LRe4,LRf4]} fxg3 30. Qxf6 Nxf6 31. hxg3 Bxd5 (31... Nxd5 $2 {perishes.} 32. Nd6 Rc7 (32... Nc3 $2 33. Rd3 $18) 33. Nxb7 $18) 32. Nd6 {Weighted Error Value: White=0.13 (very precise) /Black=0.08 (flawless) .  Mistake:       	White=1     	---        Inaccurate:     	White=3     	Black=1      OK:         	White=12    	Black=12} 0-1

[Event "45th FIDE Olympiad 2024"]
[Site "Budapest"]
[Date "2024.09.12"]
[Round "2.158"]
[White "Hillarp Persson, Tiger"]
[Black "Berend, Fred"]
[Result "1/2-1/2"]
[ECO "A09"]
[WhiteElo "2457"]
[BlackElo "2230"]
[Annotator "TA"]
[PlyCount "97"]
[EventDate "2024.09.05"]
[EventType "team-tourn"]
[EventCountry "HUN"]
[SourceTitle "playchess.com"]
[Source "ChessBase"]
[SourceQuality "1"]
[WhiteTeam "Sweden"]
[BlackTeam "Luxembourg"]
[WhiteTeamCountry "SWE"]
[BlackTeamCountry "LUX"]
[TimeControl "40/5400+30:1800+30"]

{[%evp 16,97,21,6,4,0,6,-20,-12,-24,12,24,24,8,15,9,12,8,39,18,21,7,5,7,6,6,6,0,13,12,11,0,0,0,0,0,16,12,25,31,26,14,8,0,0,0,18,0,14,0,0,0,0,0,0,0,0,0,0,0,0,0,0,0,0,0,0,0,0,0,0,0,0,0,0,0,0,0,0,0,0,0,0,0]} 1. Nf3 Nf6 2. g3 d5 3. Bg2 c5 4. c4 dxc4 5. Na3 Nc6 6. Nxc4 g6 7. b3 Bg7 8. Bb2 O-O 9. O-O Be6 10. Rc1 Rc8 11. d4 cxd4 12. Nxd4 Bd5 13. Nxc6 Bxc6 14. Bxc6 Rxc6 15. Qxd8 Rxd8 16. Rfd1 Rb8 17. Kf1 Ne8 {[%cal Oc6c4]} 18. Bxg7 Kxg7 19. Ne5 Rxc1 20. Rxc1 $11 {[%mdl 4096] Endgame. KRN-KRN} Rd8 21. Ke1 Kf6 22. Nd3 Nd6 23. f3 Rc8 24. Rxc8 Nxc8 {KN-KN} 25. Kd2 e6 26. e4 Ke7 27. Kc3 Kd6 28. Kd4 Ne7 {The position is equal.} 29. e5+ (29. Ne5 $5 f6 $8 30. Nf7+ Kc7 31. f4 $14) 29... Kc6 30. Nf2 Nf5+ 31. Ke4 h6 32. Nd3 a5 33. Nb2 b5 34. a3 Ne7 35. Nd3 Kb6 36. g4 Nd5 37. Kd4 {Prevents Nc3} Ne7 38. h4 Nc6+ 39. Ke4 Ne7 40. Kd4 Nc6+ 41. Ke3 Ne7 42. Ke4 Nc6 43. Ke3 Ne7 44. Nf2 Nc6 45. Ke4 Ne7 46. Nd3 Nc6 47. Nf2 Kc5 48. Nd3+ Kb6 49. Ke3 {An uneventful encounter.   Weighted Error Value: White=0.05 (flawless) /Black=0.05 (flawless) .  Inaccurate:     	White=1     	Black=2      OK:         	White=12    	Black=11} 1/2-1/2

[Event "45th FIDE Olympiad 2024"]
[Site "Budapest"]
[Date "2024.09.12"]
[Round "2.159"]
[White "Berend, Elvira"]
[Black "Lokander, Martin"]
[Result "0-1"]
[ECO "B14"]
[WhiteElo "2219"]
[BlackElo "2469"]
[Annotator "TA"]
[PlyCount "88"]
[EventDate "2024.09.05"]
[EventType "team-tourn"]
[EventCountry "HUN"]
[SourceTitle "playchess.com"]
[Source "ChessBase"]
[SourceQuality "1"]
[WhiteTeam "Luxembourg"]
[BlackTeam "Sweden"]
[WhiteTeamCountry "LUX"]
[BlackTeamCountry "SWE"]
[TimeControl "40/5400+30:1800+30"]

{[%evp 17,88,0,12,0,0,-43,-33,-50,-42,-38,-37,-54,-50,-65,-50,-42,-43,-60,-14,-8,-18,-16,-20,-37,-35,-28,-40,-33,-30,-62,-62,-56,-50,-45,-50,-232,-230,-205,-18,-112,-129,-101,-103,-97,-10,-77,-85,-91,-85,-110,-97,-93,-90,-125,-95,-118,-118,-111,-109,-150,-150,-189,-183,-206,-200,-885,-885,-962,-956,-926,-581,-506,-439]} 1. d4 Nf6 2. Nf3 c5 3. e3 d5 4. c4 cxd4 5. exd4 g6 6. Nc3 Bg7 7. cxd5 Nxd5 8. Qb3 Nb6 9. Bb5+ Bd7 10. a4 O-O 11. a5 Be6 12. Qd1 {Black is slightly better.} Nd5 13. O-O a6 14. Be2 Nc6 15. Qa4 Rc8 16. Rd1 h6 17. h3 {[%cal Of3e5]} Ncb4 (17... Qc7 $15) 18. Nxd5 Nxd5 19. Ne5 Qd6 {[%cal Oe6f5]} 20. Nd3 Bd7 21. Qb3 Bb5 {[%cal Oc8c4]} 22. Bf3 Bc4 23. Qa4 (23. Qxb7 $2 Rc7 (23... Bxd4 24. Ra4 $17) 24. Bxd5 Rxb7 (24... Bxd5 25. Qb4 $11) 25. Bxc4 Bxd4 (25... Qxd4 $2 26. Bxa6 Rd7 27. Be3 $19) 26. Bxh6 Rd8 $19) 23... Bxd4 24. Bxh6 Rfd8 25. Rac1 b5 26. axb6 $2 (26. Qc2 $1 $15) 26... Nxb6 $19 27. Qa5 e5 {Repels Bf4} ({Black should play} 27... Bxd3 $19 28. Rxd3 Rxc1+ (28... Nc4 $2 29. Qa1 $19) 29. Bxc1 Nc4 30. Rxd4 Nxa5 31. Rxd6 Rxd6) 28. Nb4 (28. Bg4 $11 {keeps the balance.} f5 29. Be2) 28... Bb3 $17 29. Rxc8 Rxc8 30. Re1 Bxb2 (30... Be6 $17 {Threatens to win with ...Nc4.} 31. Nd3 Nc4) 31. Nc6 {[#]} Nd5 $1 ({And not} 31... Rxc6 32. Bxc6 Bd4 (32... Qxc6 $2 {too greedy.} 33. Qb4 $18) 33. Bb7 $18) 32. Bxd5 Bxd5 33. Ne7+ Qxe7 34. Qxd5 Qf6 $36 {[%mdl 2048] Black is in control.} 35. Be3 Rd8 36. Qa5 Bd4 37. Qa3 Kg7 38. Qc1 a5 {Black is more active.} 39. Bh6+ Kh7 40. Rf1 Qf5 {[#] ...Rc8 is the strong threat.} 41. Bg5 $2 (41. Be3) 41... Rc8 $19 {Black is clearly winning.} 42. Qd2 Rc2 43. g4 Rxd2 44. gxf5 Rd3 {Weighted Error Value: White=0.38/Black=0.30.  Loses game:     	White=1     	---        Missed win:     	---       	Black=1      Mistake:       	White=3     	Black=2      Inaccurate:     	White=4     	---        OK:         	White=12    	Black=10     Best:        	---       	Black=4      Strong:       	---       	Black=1} 0-1

[Event "45th FIDE Olympiad 2024"]
[Site "Budapest"]
[Date "2024.09.12"]
[Round "2.160"]
[White "Pantzar, Milton"]
[Black "Mertens, Marc"]
[Result "1-0"]
[ECO "D91"]
[WhiteElo "2437"]
[BlackElo "2120"]
[Annotator "TA"]
[PlyCount "105"]
[EventDate "2024.09.05"]
[EventType "team-tourn"]
[EventCountry "HUN"]
[SourceTitle "playchess.com"]
[Source "ChessBase"]
[SourceQuality "1"]
[WhiteTeam "Sweden"]
[BlackTeam "Luxembourg"]
[WhiteTeamCountry "SWE"]
[BlackTeamCountry "LUX"]
[TimeControl "40/5400+30:1800+30"]

{[%evp 10,105,11,16,20,21,70,52,102,100,162,175,214,205,198,212,220,218,204,203,206,188,200,170,170,130,129,126,132,136,187,181,210,171,186,185,187,183,210,172,188,146,195,137,199,206,195,203,192,0,115,0,194,187,197,187,177,152,145,147,189,144,146,0,155,143,144,145,180,180,194,187,190,205,206,206,206,206,206,181,206,206,206,181,206,206,202,181,185,179,196,200,192,177,230,197,1345,1316]} 1. d4 Nf6 2. c4 g6 3. Nc3 d5 4. Nf3 Bg7 5. Bg5 Ne4 6. Bf4 c5 7. cxd5 Qa5 (7... Nxc3 $11 {should be considered.} 8. bxc3 Qxd5) 8. Be5 cxd4 (8... f6 $14 9. Bc7 b6) 9. Qxd4 $16 Nxc3 {[#]} (9... Nf6 $16) 10. b4 $1 $18 ({Don't take} 10. bxc3 $6 f6 11. Qc4 Na6 $16) (10. Bxg7 $6 Nxd5+ 11. b4 Nxb4 $14) 10... Nb5 {[%cal Bc3b5,Bb5d4,Bd4f3][%mdl 32]} (10... Qxd5 $2 {too greedy.} 11. Bxg7 (11. Qxc3 f6 $18) 11... Qxd4 12. Bxd4 $18) 11. bxa5 Nxd4 12. Bxg7 Nxf3+ 13. exf3 Rg8 {Black is weak on the dark squares} 14. Bd4 e6 15. Rc1 Bd7 16. dxe6 fxe6 17. Bc4 Nc6 18. Bc3 Ne7 19. O-O {White is more active.} Nd5 (19... Rc8 $16 20. Bb3 Rf8) 20. Bd4 {Black must now prevent Bxd5.} Bc6 21. Rfe1 Kd7 22. Bb3 a6 23. Be5 Rac8 24. h3 Bb5 25. Kh2 Rc6 (25... Rxc1 $16 26. Rxc1 Rc8 27. Rxc8 Kxc8) 26. Red1 (26. Rb1 $18 {Threatens to win with a4.} Rc5 27. Bd4) 26... Rgc8 (26... Rxc1 $16 {was worth a try.} 27. Rxc1 Rc8) 27. Rb1 {[%cal Oa2a4] aiming for a4!} Rc5 {[#]} 28. Bd4 $1 {[%cal Oa2a4] Strongly threatening a4!} R5c6 29. Be5 (29. Re1 $18) 29... Rc5 $16 30. Bd4 (30. Bf4 $16) 30... R5c6 $1 $18 31. a4 Bc4 32. Be5 b5 33. axb5 Bxb5 34. f4 Rc5 35. Bd4 {A strong pair of Bishops.} R5c6 36. Be5 (36. Bf6 $16) 36... Ke7 $2 (36... Rc5 $11) 37. Bxd5 $16 exd5 38. Rxd5 Rc2 39. Bd4 Kf7 40. f5 Re8 41. fxg6+ hxg6 42. Rd6 Re6 43. Rxe6 Kxe6 $18 {[%mdl 4096] Endgame. KRB-KRB} 44. Rb3 Ra2 45. Bb6 Rc2 46. Rg3 Kf5 47. Rf3+ Ke5 48. Re3+ Kd5 49. Re7 Rc3 50. Rg7 Bd3 51. Kg3 Ra3 (51... Bf1+ {keeps fighting.} 52. Kh2 Bd3) 52. h4 Ra4 $2 (52... Ke6 53. Kh3 Kf6) 53. Rd7+ {Weighted Error Value: White=0.21 (precise) /Black=0.22 (precise) .  Mistake:       	White=4     	Black=9      OK:         	White=15    	Black=13     Best:        	White=2     	Black=2      Strong:       	White=2     	Black=1} 1-0

[Event "45th FIDE Olympiad 2024"]
[Site "Budapest"]
[Date "2024.09.12"]
[Round "2.161"]
[White "Makhnev, Denis"]
[Black "Bagheri, Amir"]
[Result "1/2-1/2"]
[ECO "E11"]
[WhiteElo "2551"]
[BlackElo "2372"]
[Annotator "TA"]
[PlyCount "60"]
[EventDate "2024.09.05"]
[EventType "team-tourn"]
[EventCountry "HUN"]
[SourceTitle "playchess.com"]
[Source "ChessBase"]
[SourceQuality "1"]
[WhiteTeam "Kazakhstan"]
[BlackTeam "Monaco"]
[WhiteTeamCountry "KAZ"]
[BlackTeamCountry "MNC"]
[TimeControl "40/5400+30:1800+30"]

{[%evp 10,60,18,16,22,18,26,14,18,16,12,14,14,16,26,11,11,20,39,9,0,0,0,0,0,-40,0,0,22,15,19,0,18,-49,-39,-42,-38,-59,-24,-14,0,-185,-193,-191,-181,-203,0,0,0,0,0,0,0]} 1. d4 Nf6 2. c4 e6 3. Nf3 Bb4+ 4. Bd2 a5 5. a3 Bxd2+ 6. Qxd2 b6 7. Nc3 Bb7 8. e3 Ne4 9. Nxe4 Bxe4 10. Bd3 Bxd3 11. Qxd3 d6 12. g4 {[%cal Bg2g4,Bg4g5,Bg5g6][%mdl 32]} Nd7 13. h4 h6 14. Ke2 a4 15. g5 Ra5 16. Rhg1 Qa8 17. Rg3 Nf8 (17... Rf5 {with more complications.} 18. Rd1 g6 19. h5 hxg5 20. hxg6 g4) 18. Rag1 h5 {[#]} (18... hxg5 $5 19. Rxg5 Rxg5 20. Rxg5 g6 $16) 19. g6 $1 {Strongly threatening gxf7+.} f6 20. Rd1 Nd7 21. d5 ({White should try} 21. Nd2 $11) 21... Nc5 $15 22. Qc2 e5 {Against Nd4} 23. Nd2 Kd8 24. e4 b5 25. b4 $2 (25. Kf1 $11 {and White is okay.}) 25... axb3 $19 26. Nxb3 Rxa3 (26... Nxb3 27. Rxb3 bxc4 28. Qxc4 $11) 27. Rd2 {[#] Threatens to win with Nxc5.} (27. cxb5 $2 {too greedy.} Ra2 $19) 27... b4 $2 (27... Nxb3 28. Rxb3 Rh6 29. cxb5 Rxg6 30. Rxa3 Qxa3 31. Qc4) (27... Nd7 $1 $19 {aiming for ...Qa6.} 28. c5 (28. cxb5 $2 {is the wrong capture.} Qa4 $19) 28... Qa4 29. cxd6 cxd6) 28. Nxc5 $11 {The position is equal.} dxc5 29. Rxa3 Qxa3 30. d6 $1 Qa6 {Weighted Error Value: White=0.23 (precise) /Black=0.24 (precise) .  Loses game:     	White=1     	---        Missed win:     	---       	Black=1      Mistake:       	White=1     	---        Inaccurate:     	White=2     	Black=2      OK:         	White=8     	Black=9      Best:        	White=2     	Black=2      Strong:       	White=1     	---        Brilliant:      	White=1     	---} 1/2-1/2